Cogmind - Beta 11.1 @@@ ROGUE MODE // 2022.05.02 @ 10:40:18 Player: Olga Result: Self-destructed Performance ------------- Evolutions (2) 1000 Regions Visited (4) 800 Robots Destroyed (0) 0 Value Destroyed (0) 0 Prototype IDs (1) 20 Alien Tech Used (0) 0 Bonus (470) 470 TOTAL SCORE: 2290 Bonus ------- Pacifist 470 Cogmind --------- Core Integrity 116/550 Matter 235/300 Energy 100/100 System Corruption 0% Temperature Cool (0) Movement Core (50) Location -8/Materials Parts ------- > --- POWER (1) -------- (None) > --- PROPULSION (4) --- (None) > --- UTILITY (4) ------ (None) > --- WEAPON (2) ------- (None) > --- INVENTORY (5) ---- Nuclear Core Medium Armor Plating Medium Armor Plating Medium Armor Plating Hacking Suite Peak State ------------ > --- POWER ------------ Ion Engine > --- PROPULSION ------- Hover Unit Airjet > --- UTILITY ---------- Visual Processing Unit Improved Terrain Scanner Improved Terrain Scan Processor Propulsion Shielding > --- WEAPON ----------- Heavy Flail > --- INVENTORY -------- Medium Armor Plating Medium Armor Plating Medium Armor Plating Medium Armor Plating Hacking Suite [Rating: 18] Favorites ----------- Power Light Ion Engine Engine Light Ion Engine Propulsion Flight Unit Hover Unit Airjet Flight Unit Flight Unit Utility Improved Terrain Scanner Device Improved Terrain Scanner Processor Improved Terrain Scan Processor Protection Propulsion Shielding Weapon Light Assault Rifle Ballistic Gun Light Assault Rifle Impact Weapon Heavy Flail Build | -11 -10 -9 -9 -8 ------- Run | Scr Mat Mat Min Mat Slots Evolved 4 | . . 2 . 2 Power . | . . . . . Propulsion 2 | . . 1 . 1 Utility 2 | . . 1 . 1 Weapon . | . . . . . Parts Attached 18 | 1 5 2 . 10 Power 2 | . 1 . . 1 Engine 2 | . 1 . . 1 Core . | . . . . . Reactor . | . . . . . Propulsion 5 | . 2 1 . 2 Treads . | . . . . . Leg . | . . . . . Wheel . | . . . . . Hover 2 | . . . . 2 Flight 3 | . 2 1 . . Utility 7 | . . 1 . 6 Device 2 | . . . . 2 Storage . | . . . . . Processor 2 | . . . . 2 Hackware . | . . . . . Protection 3 | . . 1 . 2 Artifact . | . . . . . Weapon 4 | 1 2 . . 1 Energy Gun . | . . . . . Energy Cannon . | . . . . . Ballistic Gun 3 | 1 2 . . . Ballistic Cannon . | . . . . . Launcher . | . . . . . Special Weapon . | . . . . . Impact Weapon 1 | . . . . 1 Slashing Weapon . | . . . . . Piercing Weapon . | . . . . . Special Melee Weapon . | . . . . . Unidentified Prototypes . | . . . . . Corrupted Parts 4 | . 4 . . . System Corruption 22 | . 22 . . . Parts Lost 8 | . 1 . . 7 Power 1 | . . . . 1 Propulsion 5 | . . . . 5 Utility 1 | . . . . 1 Weapon 1 | . 1 . . . Highest Loss Streak 4 | . 1 . . 4 To Critical Strikes . | . . . . . Average Slot Usage (%) 45 | . 28 71 77 48 Engine 4 | . 4 11 11 3 Hover 5 | . . . . 8 Flight 9 | . 8 33 33 6 Device 6 | . . . . 10 Processor 4 | . . . . 6 Protection 5 | . . 5 11 7 Ballistic Gun 8 | . 15 22 22 3 Impact Weapon 1 | . . . . 1 Naked Turns 15 | . 12 . . 3 Heaviest Build 12 | 1 5 12 12 12 Greatest Support 14 | 3 8 12 12 14 Greatest Overweight (x) . | . . . . . Average Overweight (x) . | . . . . . Largest Inventory Capacity 5 | 5 5 5 5 5 Average Capacity 5 | 5 5 5 5 5 Most Carried 5 | 5 5 4 3 5 Average Carried 4 | 5 4 3 3 4 Final Capacity 5 | 5 5 5 5 5 Final Carried 5 | 5 5 3 3 5 Class Distribution -------------------- 52% | Mutant 26% | Scavenger-Mutant 20% | Scout Dominant Class ---------------- Mutant | -10/Materials Mutant | -9/Materials Scavenger-Mutant | -9/Mines Mutant | -8/Materials Resources | -11 -10 -9 -9 -8 ----------- Run | Scr Mat Mat Min Mat Matter Collected 279 | 199 38 . 19 23 Remotely . | . . . . . Salvage Created . | . . . . . Parts . | . . . . . Haulers Intercepted . | . . . . . Recyclers Shooed . | . . . . . Parts Field Recycled . | . . . . . Retrieved Matter . | . . . . . Parts Self-Destructed . | . . . . . Prevented . | . . . . . Kills | -11 -10 -9 -9 -8 ------- Run | Scr Mat Mat Min Mat Combat Hostiles Destroyed . | . . . . . Classes Destroyed . | . . . . . Best Kill Streak . | . . . . . Combat Bots Only . | . . . . . Max Kills in Single Turn . | . . . . . Gunslinging . | . . . . . Exploded . | . . . . . Melee . | . . . . . Uniques/NPCs Destroyed . | . . . . . Combat | -11 -10 -9 -9 -8 -------- Run | Scr Mat Mat Min Mat Damage Taken 1114 | . 327 . 23 764 Core 654 | . 208 . 12 434 Absorbed by Shields . | . . . . . Redirected to Shielding 31 | . . . . 31 Core Remaining (%) 71 | 100 16 . 97 . Volleys Fired 6 | . 6 . . . Largest 1 | . 1 . . . Hottest 20 | . 20 . . . Shots Fired 6 | . 6 . . . Gun 6 | . 6 . . . Cannon . | . . . . . Launcher . | . . . . . Special . | . . . . . Kinetic 6 | . 6 . . . Thermal . | . . . . . Explosive . | . . . . . Electromagnetic . | . . . . . Robot Hit Streak . | . . . . . Robot Miss Streak . | . . . . . Penetration Max . | . . . . . Secondary Targets . | . . . . . Shots Hit Robots . | . . . . . Core Hits 2 | . 2 . . . Critical Kills . | . . . . . Critical Parts Destroyed . | . . . . . Critical Strikes . | . . . . . Melee Attacks . | . . . . . Impact . | . . . . . Slashing . | . . . . . Piercing . | . . . . . Sneak Attacks . | . . . . . Combat Hostiles . | . . . . . Follow-up Attacks . | . . . . . Damage Inflicted 20 | . 20 . . . Guns . | . . . . . Cannons . | . . . . . Explosions . | . . . . . Melee . | . . . . . Ramming 20 | . 20 . . . Kinetic . | . . . . . Thermal . | . . . . . Explosive . | . . . . . Electromagnetic . | . . . . . Impact . | . . . . . Slashing . | . . . . . Piercing . | . . . . . Highest Corruption 23 | . 23 . . . Average Corruption 16 | . 16 . . . Corruption Purged . | . . . . . Corruption Blocked . | . . . . . Effects 3 | . 3 . . . Matter Fused 1 | . 1 . . . Energy Discharges 1 | . 1 . . . Misdirections 1 | . 1 . . . Overload Shots . | . . . . . Overflow Damage . | . . . . . Projectiles . | . . . . . Explosions . | . . . . . Melee . | . . . . . Knockbacks . | . . . . . Impact . | . . . . . Kinetic . | . . . . . Secondary . | . . . . . Self-Inflicted Damage 9 | . 9 . . . Shots . | . . . . . Rammed 7 | . 7 . . . Targets Rammed 7 | . 7 . . . Kicked . | . . . . . Crushed . | . . . . . Highest Temperature 38 | . . . 4 38 Average Temperature 13 | . . . 4 15 Received Heat Transfer 330 | . 30 . 12 288 Siege Activations . | . . . . . Robots Corrupted . | . . . . . Combat Hostiles . | . . . . . Parts Fried . | . . . . . Impact Corruptions . | . . . . . Robots Melted . | . . . . . Combat Hostiles . | . . . . . Parts Melted . | . . . . . Heat Transferred . | . . . . . Parts Sabotaged . | . . . . . Parts Stolen . | . . . . . Parts Stripped . | . . . . . Power Chain Reactions . | . . . . . Missiles Intercepted . | . . . . . Alert | -11 -10 -9 -9 -8 ------- Run | Scr Mat Mat Min Mat Peak Influence 225 | . 50 20 7 225 Initial 20 | . . 20 7 2 Average 62 | . 21 20 7 88 Maximum Alert Level 1 | . . . . 1 Low Security (%) 90 | 100 100 100 100 84 Level 1 9 | . . . . 15 Level 2 . | . . . . . Level 3 . | . . . . . Level 4 . | . . . . . Level 5 . | . . . . . High Security . | . . . . . Max Security . | . . . . . Squads Dispatched 6 | . 1 . . 5 Investigation 4 | . 1 . . 3 Extermination . | . . . . . Reinforcement 2 | . . . . 2 Assault . | . . . . . Garrison . | . . . . . Intercept . | . . . . . Searches Triggered . | . . . . . Construction Impeded . | . . . . . Haulers Reinforced . | . . . . . Active Scanning Responses . | . . . . . Cargo Convoy Interrupts . | . . . . . Stealth | -11 -10 -9 -9 -8 --------- Run | Scr Mat Mat Min Mat Distress Signals . | . . . . . Communications Jammed . | . . . . . Distress Signals . | . . . . . Times Spotted 46 | . 16 . 3 27 Peak Tracking Total 17 | . 10 . 3 17 Tactical Retreats 8 | . 1 . . 7 Traps | -11 -10 -9 -9 -8 ------- Run | Scr Mat Mat Min Mat Traps Triggered 2 | . . . . 2 Indirectly . | . . . . . Trap Hack Attempts . | . . . . . Triggered . | . . . . . Disarmed . | . . . . . Reprogrammed . | . . . . . Reused . | . . . . . Traps Extracted . | . . . . . Installed . | . . . . . Triggered . | . . . . . Machines | -11 -10 -9 -9 -8 ---------- Run | Scr Mat Mat Min Mat Machines Disabled . | . . . . . Max in Single Turn . | . . . . . Machines Sabotaged . | . . . . . Garrisons Compromised . | . . . . . Overloaded Fab Kills . | . . . . . Hacking | -11 -10 -9 -9 -8 --------- Run | Scr Mat Mat Min Mat Machines Accessed 3 | . 1 . . 2 Terminals 2 | . 1 . . 1 Fabricators . | . . . . . Repair Stations . | . . . . . Recycling Units . | . . . . . Scanalyzers 1 | . . . . 1 Garrison Access . | . . . . . Total Hacks 9 | . 3 . . 6 Successful 5 | . . . . 5 Failed 4 | . 3 . . 1 Catastrophic 2 | . 2 . . . Database Lockouts . | . . . . . Manual 4 | . 3 . . 1 Terminals 4 | . 3 . . 1 Fabricators . | . . . . . Repair Stations . | . . . . . Recycling Units . | . . . . . Scanalyzers 5 | . . . . 5 Garrison Access . | . . . . . Terminal Hacks 1 | . . . . 1 Unreport Threat 1 | . . . . 1 Fabricator Hacks . | . . . . . Repair Station Hacks . | . . . . . Recycling Unit Hacks . | . . . . . Scanalyzer 4 | . . . . 4 Insert Component 2 | . . . . 2 Analyze 2 | . . . . 2 Garrison Access Hacks . | . . . . . Unauthorized Hacks . | . . . . . Terminals . | . . . . . Fabricators . | . . . . . Repair Stations . | . . . . . Recycling Units . | . . . . . Scanalyzers . | . . . . . Garrison Access . | . . . . . Data Cores Recovered . | . . . . . Used . | . . . . . Hacking Detections 2 | . 1 . . 1 Full Trace Events 2 | . 1 . . 1 Feedback Events 1 | . 1 . . . Corruption 1 | . 1 . . . Feedback Blocked . | . . . . . Robot Schematics Acquired . | . . . . . Robots Built . | . . . . . Authchips . | . . . . . Time . | . . . . . Total Robot Build Rating . | . . . . . Part Schematics Acquired 1 | . . . . 1 Parts Built . | . . . . . Authchips . | . . . . . Time . | . . . . . Total Part Build Rating . | . . . . . Parts Repaired . | . . . . . Time . | . . . . . Parts Recycled . | . . . . . Recycled Matter . | . . . . . Retrieved Matter . | . . . . . Retrieved Components . | . . . . . Parts Scanalyzed 2 | . . . . 2 Part Schematics Acquired 1 | . . . . 1 Parts Damaged . | . . . . . Bothacking | -11 -10 -9 -9 -8 ------------ Run | Scr Mat Mat Min Mat Used RIF Installer . | . . . . . Robots Hacked . | . . . . . Non-combat . | . . . . . Combat . | . . . . . Robot Hacks Applied . | . . . . . Relay Couplers Released . | . . . . . Fabnet Peak Effective % . | . . . . . Robots Rewired . | . . . . . Allies Hacked . | . . . . . Hacks Repelled . | . . . . . Allies | -11 -10 -9 -9 -8 -------- Run | Scr Mat Mat Min Mat Total Allies . | . . . . . Largest Group . | . . . . . Highest-Rated Group . | . . . . . Highest-Rated Ally . | . . . . . Total Orders . | . . . . . Ally Attacks . | . . . . . Total Damage . | . . . . . Kills . | . . . . . Allies Corrupted . | . . . . . Allies Melted . | . . . . . Intel | -11 -10 -9 -9 -8 ------- Run | Scr Mat Mat Min Mat Robot Analysis Total . | . . . . . Derelict Logs Recovered . | . . . . . Drone Launches . | . . . . . Drone Recoveries . | . . . . . Exploration | -11 -10 -9 -9 -8 ------------- Run | Scr Mat Mat Min Mat Turns Passed 385 | 3 105 17 16 244 Spaces Moved 696 | 3 163 40 48 442 Core 201 | 3 100 . . 98 Treads . | . . . . . Legs . | . . . . . Wheels . | . . . . . Hover 175 | . . . . 175 Flight 320 | . 63 40 48 169 Fastest Speed 34 | 50 37 34 34 34 Average Speed 44 | 50 44 34 34 46 Slowest Speed 60 | 50 50 34 34 60 Overloaded Moves . | . . . . . Propulsion Burnouts . | . . . . . Robots Hopped 6 | . 2 . . 4 Cave-ins Triggered . | . . . . . Exploration Rate (%) 24 | 2 34 9 24 51 Regions Visited 4 Branch Regions 1 Pre-discovered Areas . | . . . . . Known Exits Taken . | . . . . . Unknown Exits Taken 4 | 1 1 1 1 . Scrap Searched 1 | . . . 1 . Spaces Dug . | . . . . . Terrain Destroyed . | . . . . . Melee . | . . . . . Projectile . | . . . . . AOE . | . . . . . Terrain Rammed . | . . . . . Walls Destroyed . | . . . . . Machines Disabled . | . . . . . Actions | -11 -10 -9 -9 -8 --------- Run | Scr Mat Mat Min Mat Total 755 | 3 186 43 47 476 Wait 14 | . . . . 14 Move 682 | 2 159 39 47 435 Hop 4 | . 1 . . 3 Pick Up 9 | . 4 1 . 4 Fast Attach 15 | 1 5 . . 9 Attach 2 | . . 2 . . Detach 1 | . . . . 1 Swap 1 | . . . . 1 Drop 14 | . 4 1 . 9 Fire 6 | . 6 . . . Melee . | . . . . . Ram 7 | . 7 . . . Kick . | . . . . . Crush . | . . . . . Escape Stasis . | . . . . . Rewire . | . . . . . Trap . | . . . . . Miscellaneous . | . . . . . Route ------- -11/Scrapyard -10/Materials -9/Materials -9/Mines -8/Materials History --------- Turn | Location | Event 1 | -11/Scrapyard | Released all parts (6) 1 | -11/Scrapyard | Discovered new exit (range 2) 4 | -11/Scrapyard | Entered Materials 69 | -10/Materials | Core integrity fell below 50% 75 | -10/Materials | System corruption reached 10% 100 | -10/Materials | Core integrity fell below 20% 103 | -10/Materials | Discovered new exit (range 10) 109 | -10/Materials | Entered another Materials area 109 | -9/Materials | Evolved 2 slots: Propulsion x1, Utility x1 121 | -9/Materials | Discovered new exit (range 15) 126 | -9/Materials | Entered Mines 138 | -9/Mines | Discovered new exit (range 12) 142 | -9/Mines | Entered Materials 142 | -8/Materials | Evolved 2 slots: Propulsion x1, Utility x1 240 | -8/Materials | Lost 4 parts (1p3n) 372 | -8/Materials | Core integrity fell below 50% 386 | -8/Materials | Self-destructed Last Messages --------------- 00369_ G-47 Trooper unfolds itself. 00369_ Airjet destroyed. 00369_ Hover Unit destroyed. 00369_ Dropped Propulsion Shielding. 00369_ Knocked back. 00369_ Dropped Ion Engine. 00370_ R-06 Scavenger collects Propulsion Shielding. 00370_ Dropped Hvy. Flail. 00372_ Knocked back. 00372_ U-05 Engineer destroyed. 00373_ R-06 Scavenger collects Hvy. Flail. 00373_ O-16 Technician: "IFF HANDSHAKE FAILED. SECURING TERMINAL." 00374_ Imp. Terrain Scanner destroyed. 00376_ O-16 Technician uses terminal to summon reinforcements. 00376_ ALERT: Hostiles spotted, dispatching reinforcements to Terminal M002. 00376_ O-16 Technician locks terminal. 00377_ R-06 Scavenger collects Ion Engine. 00377_ Visual Processing Unit severed. 00383_ Imp. Terrain Scan Processor severed. Map ----- +----------------------------------------------------+ | ??????????????????????????? ????????? | | ?????????????????????? ???? ??? ????? | | ?????????????????????? ????????????## | | ?????????????????????# ?????????????? | | ?????????????????????# ##+##+#??????# | | ???????????????????### #?#????? | | ???????????????????? ######?# | | ?????????????????????# """ !!####? | | ?????????????????????# """ !##?? | | ????????###??######### """ !#??? | | ????????# ## !???? | | ????????# """ """ ## ????# | | ????????# """ """ ## !?#?### | | ????????# """ """ ## "" ##### | | ?????????? ## "T | | | ???????????? ! # "" % | | ?????????????? ?# = | | ??????????????##+#### ! # ## | | ??????????????# ###? | | ??????????????# ###+###???? | | ???????######## """ #??? ??????" | | ???????# # """ #??????#???? | | ???????# """ # """ #???"??????? | | ???????#= """ # g #??????????? | | ???????# """ # g #??????????? | | ???????#= @c/ g #??????????? | | ???????# ! # """ #?????????? | | ???????######## "G #?#????????? | | ?????????????? """ ###??????????? | | ?????????????? #????????????? | | ?????????????+ #????????????? | | ?????????????# ###+#????????????? | | ?????????????# #??????????????##+ | | ?????????????### ###?????????????# | | ???????????????? #???????????????# | | ???????????????? #???????????????# | | ????????????????+#????############ | | ??????????????????????# "T" ## | | ??????????????????????# ## | | ??????????????????????# """"" ## | | ??????????????????????# """"" ## | | ??????????????????????# """" + | | ??????????????????????# ## | | ??????????????????????# ## | | ??????????????????????# ## | | ??????????????????????#####+###### | | ???????????????????###### #### | | ?????????????????? [ | | ?????????????????? =% | | ?????????????????? * | +----------------------------------------------------+ Best States ------------- Heat Dissipation 31 Energy Generation 10 Energy Capacity 250 Matter Stores 300 Matter Capacity 300 Sight Range 18 Terrain Scan Range 16 Terrain Scan Density 110 Armor Coverage 225 Propulsion Shielding 33 Evasion (%) 63 Recoil Reduction 4 Item Schematics ----------------- Hacking Suite | -8/Materials | Scanalyzed Robot Schematics ------------------ None Fabricated ------------ Nothing Alien Tech Used ----------------- None Achievements -------------- None Challenges ------------ None Game ------ Seed MinesnifferGammaClaymores Manual? 0 Play Time 00:10:06 Cumulative 158.4 hours Start 2022.05.02 @ 10:32:04 End 2022.05.02 @ 10:40:18 Sessions 1 Manual Loads 0 Difficulty Rogue Special Mode None Game No. 252 Rogue 251 Adventurer 0 Explorer 1 Win Type - Total 7 Types 7/0/0/0/0/0/0/0/0 Lore% 60 Gallery% 63 Achievement% 53 Wizard Run 0 Options --------- ASCII 1 Keyboard 0 Movement Vi Keybinds 0 Fullscreen 1 Font 18/SmallcapsGlow Map View 76x50 Tactical HUD 1 Map Filters NONE Filters NONE Steam 1 RUN: 322ced8c-be08-464e-90f0-78c05bc03fe8